[Event "FIDE Women World Blitz 2021"]
[Site "Warsaw"]
[Date "2021.12.29"]
[Round "6.33"]
[White "Doluhanova, Evgeniya"]
[Black "Dworakowska, Joanna"]
[Result "0-1"]
[ECO "E14"]
[WhiteElo "2237"]
[BlackElo "2228"]
[Annotator "NA"]
[PlyCount "80"]
[EventDate "2021.12.29"]
[EventType "swiss"]
[EventCountry "POL"]
[Tiebreak "Cut1 Buchholz"]
[SourceTitle "playchess.com"]
[Source "ChessBase"]
[SourceQuality "1"]
[TimeControl "180+2"]

1. Nf3 {[%emt 0:00:03]} d5 {[%emt 0:00:02]} 2. b3 {[%emt 0:00:01]} Nf6 {
[%emt 0:00:21]} 3. Bb2 {[%emt 0:00:02]} e6 {[%emt 0:00:02]} 4. e3 {[%emt 0:00:
04]} Be7 {[%emt 0:00:02]} 5. Be2 {[%emt 0:00:05]} O-O {[%emt 0:00:03]} 6. O-O {
[%emt 0:00:03]} b6 {[%emt 0:00:26]} 7. c4 {[%emt 0:00:06]} Bb7 {[%emt 0:00:02]}
8. Nc3 {[%emt 0:00:05]} Nbd7 {[%emt 0:00:02]} 9. d4 {[%emt 0:00:02]} Ne4 {
[%emt 0:00:17]} 10. Rc1 {[%emt 0:00:16]} Rc8 {[%emt 0:00:30]} 11. h3 {[%emt 0:
00:24]} f5 {[%emt 0:00:03]} 12. cxd5 {[%emt 0:00:08]} exd5 {[%emt 0:00:02]} 13.
Ne5 {[%emt 0:00:02]} Bd6 {[%emt 0:00:09]} 14. Nxe4 {[%emt 0:00:30]} fxe4 {
[%emt 0:00:37]} 15. Nxd7 {[%emt 0:00:04]} Qxd7 {[%emt 0:00:06]} 16. Bg4 {
[%emt 0:00:02]} Qe7 {[%emt 0:00:17]} 17. Bxc8 {[%emt 0:00:15]} Bxc8 {[%emt 0:
00:01]} 18. f4 {[%emt 0:00:20]} Rf6 {[%emt 0:00:29]} 19. Qh5 {[%emt 0:00:12]}
Be6 {[%emt 0:00:02]} 20. Qh4 {[%emt 0:00:16]} Qf7 {[%emt 0:00:01]} 21. Rc2 {
[%emt 0:00:12]} Bd7 {[%emt 0:00:04]} 22. a4 {[%emt 0:00:03]} Bc8 {[%emt 0:00:
02]} 23. Bc3 {[%emt 0:00:10]} a5 {[%emt 0:00:01]} 24. Be1 {[%emt 0:00:03]} Ba6
{[%emt 0:00:01]} 25. Rff2 {[%emt 0:00:02]} Bd3 {[%emt 0:00:02]} 26. Rc6 {
[%emt 0:00:04]} Qe8 {[%emt 0:00:02]} 27. Rc1 {[%emt 0:00:02]} Rg6 {[%emt 0:00:
03]} 28. Rd2 {[%emt 0:00:09]} Be7 {[%emt 0:00:03]} 29. Qf2 {[%emt 0:00:02]} Ba6
{[%emt 0:00:03]} 30. Rdc2 {[%emt 0:00:02]} Bd6 {[%emt 0:00:01]} 31. Qh4 {
[%emt 0:00:04]} Be7 {[%emt 0:00:02]} 32. Qf2 {[%emt 0:00:02]} Bd6 {[%emt 0:00:
01]} 33. Rxc7 {[%emt 0:00:01]} Bxc7 {[%emt 0:00:01]} 34. Rxc7 {[%emt 0:00:05]}
Rc6 {[%emt 0:00:00]} 35. Rxc6 {[%emt 0:00:02]} Qxc6 {[%emt 0:00:00]} 36. Kh2 {
[%emt 0:00:02]} Bd3 {[%emt 0:00:00]} 37. Qh4 {[%emt 0:00:01]} h6 {[%emt 0:00:
02]} 38. Qd8+ {[%emt 0:00:02]} Kh7 {[%emt 0:00:00]} 39. Bh4 {[%emt 0:00:01]}
Bc2 {[%emt 0:00:02]} 40. Qd6 {[%emt 0:00:03]} Qxd6 {[%emt 0:00:01]} 0-1

[Event "FIDE Women World Blitz 2021"]
[Site "Warsaw"]
[Date "2021.12.29"]
[Round "6.34"]
[White "Goraj, Barbara"]
[Black "Strutinskaia, Galina"]
[Result "0-1"]
[ECO "A09"]
[WhiteElo "1902"]
[BlackElo "2188"]
[Annotator "NA"]
[PlyCount "116"]
[EventDate "2021.12.29"]
[EventType "swiss"]
[EventCountry "POL"]
[Tiebreak "Cut1 Buchholz"]
[SourceTitle "playchess.com"]
[Source "ChessBase"]
[SourceQuality "1"]
[TimeControl "180+2"]

1. Nf3 {[%emt 0:00:01]} d5 {[%emt 0:00:03]} 2. c4 {[%emt 0:00:02]} d4 {[%emt 0:
00:02]} 3. b4 {[%emt 0:00:01]} a5 {[%emt 0:00:02]} 4. Bb2 {[%emt 0:00:12]} c5 {
[%emt 0:00:02]} 5. bxc5 {[%emt 0:00:06]} Nc6 {[%emt 0:00:02]} 6. e3 {[%emt 0:
00:32]} e5 {[%emt 0:00:01]} 7. exd4 {[%emt 0:00:36]} exd4 {[%emt 0:00:01]} 8.
Bd3 {[%emt 0:00:15]} Bxc5 {[%emt 0:00:04]} 9. O-O {[%emt 0:00:03]} Nge7 {
[%emt 0:00:01]} 10. Re1 {[%emt 0:00:05]} Bg4 {[%emt 0:00:10]} 11. h3 {[%emt 0:
00:02]} Bh5 {[%emt 0:00:00]} 12. Na3 {[%emt 0:00:09]} Bg6 {[%emt 0:00:28]} 13.
Bxg6 {[%emt 0:00:06]} hxg6 {[%emt 0:00:01]} 14. Nb5 {[%emt 0:00:02]} O-O {
[%emt 0:00:01]} 15. d3 {[%emt 0:00:06]} Nf5 {[%emt 0:00:05]} 16. a3 {[%emt 0:
00:08]} a4 {[%emt 0:00:04]} 17. Qd2 {[%emt 0:00:02]} Na5 {[%emt 0:00:03]} 18.
Qf4 {[%emt 0:00:15]} Nb3 {[%emt 0:00:03]} 19. Rad1 {[%emt 0:00:01]} Ra6 {
[%emt 0:00:17]} 20. h4 {[%emt 0:00:06]} Rf6 {[%emt 0:00:18]} 21. Qe4 {[%emt 0:
00:03]} b6 {[%emt 0:00:04]} 22. Ne5 {[%emt 0:00:11]} Re6 {[%emt 0:00:05]} 23.
h5 {[%emt 0:00:08]} f6 {[%emt 0:00:19]} 24. hxg6 {[%emt 0:00:14]} Rxe5 {
[%emt 0:00:02]} 25. Qg4 {[%emt 0:00:02]} Nh6 {[%emt 0:00:06]} 26. Qf3 {[%emt 0:
00:16]} Rfe8 {[%emt 0:00:03]} 27. Rxe5 {[%emt 0:00:02]} Rxe5 {[%emt 0:00:01]}
28. g3 {[%emt 0:00:06]} Qe8 {[%emt 0:00:02]} 29. Kg2 {[%emt 0:00:03]} Qxg6 {
[%emt 0:00:02]} 30. Qa8+ {[%emt 0:00:02]} Re8 {[%emt 0:00:06]} 31. Qxa4 {
[%emt 0:00:02]} Re2 {[%emt 0:00:11]} 32. Qxb3 {[%emt 0:00:02]} Ng4 {[%emt 0:00:
02]} 33. Rf1 {[%emt 0:00:04]} Ne3+ {[%emt 0:00:03]} 34. Kg1 {[%emt 0:00:02]}
Nxf1 {[%emt 0:00:09]} 35. Kxf1 {[%emt 0:00:01]} Qh5 {[%emt 0:00:03]} 36. Bxd4 {
[%emt 0:00:03]} Re7 {[%emt 0:00:11]} 37. Kg2 {[%emt 0:00:01]} Kh7 {[%emt 0:00:
06]} 38. Bxc5 {[%emt 0:00:02]} Qxc5 {[%emt 0:00:01]} 39. Nc3 {[%emt 0:00:02]}
Qd4 {[%emt 0:00:10]} 40. Ne4 {[%emt 0:00:02]} f5 {[%emt 0:00:04]} 41. Ng5+ {
[%emt 0:00:02]} Kg6 {[%emt 0:00:02]} 42. Nf3 {[%emt 0:00:02]} Qc5 {[%emt 0:00:
03]} 43. d4 {[%emt 0:00:02]} Qc7 {[%emt 0:00:03]} 44. Ne5+ {[%emt 0:00:01]} Kh7
{[%emt 0:00:01]} 45. Qd3 {[%emt 0:00:02]} g6 {[%emt 0:00:02]} 46. a4 {[%emt 0:
00:02]} Qb7+ {[%emt 0:00:02]} 47. Kg1 {[%emt 0:00:02]} Qe4 {[%emt 0:00:02]} 48.
Qd2 {[%emt 0:00:02]} Ra7 {[%emt 0:00:05]} 49. Qd1 {[%emt 0:00:04]} Kg7 {
[%emt 0:00:06]} 50. f3 {[%emt 0:00:01]} Qe3+ {[%emt 0:00:01]} 51. Kg2 {[%emt 0:
00:01]} Kf6 {[%emt 0:00:03]} 52. Qb1 {[%emt 0:00:03]} Qxd4 {[%emt 0:00:03]} 53.
Nc6 {[%emt 0:00:02]} Qd2+ {[%emt 0:00:01]} 54. Kg1 {[%emt 0:00:02]} Rxa4 {
[%emt 0:00:08]} 55. Nb4 {[%emt 0:00:03]} Rxb4 {[%emt 0:00:03]} 56. Qa1+ {
[%emt 0:00:01]} Qb2 {[%emt 0:00:01]} 57. Qa8 {[%emt 0:00:02]} Qc1+ {[%emt 0:00:
07]} 58. Kg2 {[%emt 0:00:03]} Rb2+ {[%emt 0:00:01]} 0-1

[Event "FIDE Women World Blitz 2021"]
[Site "Warsaw"]
[Date "2021.12.29"]
[Round "6.35"]
[White "Fernandez, Maria Florencia"]
[Black "Yakimova, Mariya"]
[Result "0-1"]
[ECO "E73"]
[WhiteElo "2184"]
[BlackElo "2219"]
[Annotator "NA"]
[PlyCount "32"]
[EventDate "2021.12.29"]
[EventType "swiss"]
[EventCountry "POL"]
[Tiebreak "Cut1 Buchholz"]
[SourceTitle "playchess.com"]
[Source "ChessBase"]
[SourceQuality "1"]
[TimeControl "180+2"]

1. d4 {[%emt 0:00:01]} Nf6 {[%emt 0:00:01]} 2. c4 {[%emt 0:00:01]} g6 {[%emt 0:
00:01]} 3. Nc3 {[%emt 0:00:01]} Bg7 {[%emt 0:00:01]} 4. e4 {[%emt 0:00:00]} d6
{[%emt 0:00:01]} 5. Be2 {[%emt 0:00:01]} O-O {[%emt 0:00:03]} 6. Be3 {[%emt 0:
00:00]} e5 {[%emt 0:00:01]} 7. d5 {[%emt 0:00:01]} Na6 {[%emt 0:00:01]} 8. g4 {
[%emt 0:00:02]} Nc5 {[%emt 0:00:01]} 9. f3 {[%emt 0:00:00]} h5 {[%emt 0:00:01]}
10. g5 {[%emt 0:00:01]} Nh7 {[%emt 0:00:02]} 11. h4 {[%emt 0:00:09]} f6 {
[%emt 0:00:01]} 12. Qd2 {[%emt 0:00:06]} fxg5 {[%emt 0:00:01]} 13. hxg5 {
[%emt 0:00:02]} Rf4 {[%emt 0:00:14]} 14. Bxf4 {[%emt 0:00:32]} exf4 {[%emt 0:
00:01]} 15. Qxf4 {[%emt 0:00:24]} Nxg5 {[%emt 0:00:02]} 16. O-O-O {[%emt 0:00:
11]} Be5 {[%emt 0:00:02]} 0-1

[Event "FIDE Women World Blitz 2021"]
[Site "Warsaw"]
[Date "2021.12.29"]
[Round "6.36"]
[White "Smietanska, Wiktoria"]
[Black "Maisuradze, Nino"]
[Result "0-1"]
[ECO "A27"]
[WhiteElo "1765"]
[BlackElo "2175"]
[Annotator "NA"]
[PlyCount "92"]
[EventDate "2021.12.29"]
[EventType "swiss"]
[EventCountry "POL"]
[Tiebreak "Cut1 Buchholz"]
[SourceTitle "playchess.com"]
[Source "ChessBase"]
[SourceQuality "1"]
[TimeControl "180+2"]

1. c4 {[%emt 0:00:01]} e5 {[%emt 0:00:02]} 2. Nc3 {[%emt 0:00:01]} Nc6 {
[%emt 0:00:01]} 3. Nf3 {[%emt 0:00:01]} f5 {[%emt 0:00:08]} 4. g3 {[%emt 0:00:
05]} e4 {[%emt 0:00:10]} 5. Nh4 {[%emt 0:00:01]} d6 {[%emt 0:00:07]} 6. Ng2 {
[%emt 0:00:06]} Nf6 {[%emt 0:00:05]} 7. h4 {[%emt 0:00:02]} Ne5 {[%emt 0:00:03]
} 8. b3 {[%emt 0:00:05]} c6 {[%emt 0:00:22]} 9. Bb2 {[%emt 0:00:07]} Qe7 {
[%emt 0:00:01]} 10. Nf4 {[%emt 0:00:02]} g6 {[%emt 0:00:08]} 11. Bg2 {[%emt 0:
00:07]} Bh6 {[%emt 0:00:03]} 12. d4 {[%emt 0:00:23]} exd3 {[%emt 0:00:04]} 13.
Nxd3 {[%emt 0:00:02]} Bd7 {[%emt 0:00:17]} 14. O-O {[%emt 0:00:03]} O-O {
[%emt 0:00:12]} 15. e4 {[%emt 0:00:16]} fxe4 {[%emt 0:00:13]} 16. Nxe4 {
[%emt 0:00:02]} Nxe4 {[%emt 0:00:05]} 17. Bxe4 {[%emt 0:00:02]} Bg4 {[%emt 0:
00:19]} 18. Qc2 {[%emt 0:00:27]} Nf3+ {[%emt 0:00:46]} 19. Bxf3 {[%emt 0:00:03]
} Bxf3 {[%emt 0:00:06]} 20. Rae1 {[%emt 0:00:14]} Qd7 {[%emt 0:00:05]} 21. Qc3
{[%emt 0:00:15]} Bg7 {[%emt 0:00:16]} 22. Qxg7+ {[%emt 0:00:05]} Qxg7 {[%emt 0:
00:00]} 23. Bxg7 Kxg7 24. Nf4 {[%emt 0:00:08]} Rfe8 {[%emt 0:00:02]} 25. Ne6+ {
[%emt 0:00:16]} Kf6 {[%emt 0:00:02]} 26. Nf4 {[%emt 0:00:29]} a5 {[%emt 0:00:
04]} 27. Rc1 {[%emt 0:00:09]} a4 {[%emt 0:00:01]} 28. b4 {[%emt 0:00:01]} Be4 {
[%emt 0:00:06]} 29. a3 {[%emt 0:00:05]} Bf5 {[%emt 0:00:02]} 30. Rfd1 {[%emt 0:
00:02]} Rad8 31. Rd2 {[%emt 0:00:02]} Re4 {[%emt 0:00:03]} 32. Kg2 {[%emt 0:00:
14]} h6 {[%emt 0:00:02]} 33. Nd3 {[%emt 0:00:06]} Rd4 {[%emt 0:00:02]} 34. Rc3
{[%emt 0:00:03]} d5 {[%emt 0:00:02]} 35. c5 {[%emt 0:00:01]} Re8 {[%emt 0:00:
02]} 36. Kf3 {[%emt 0:00:04]} Be4+ {[%emt 0:00:03]} 37. Kf4 {[%emt 0:00:03]}
Bxd3+ {[%emt 0:00:01]} 38. Kf3 {[%emt 0:00:01]} Be4+ {[%emt 0:00:02]} 39. Kf4 {
[%emt 0:00:02]} Bg2+ {[%emt 0:00:02]} 40. Rxd4 {[%emt 0:00:02]} g5+ {[%emt 0:
00:03]} 41. hxg5+ {[%emt 0:00:01]} hxg5+ {[%emt 0:00:01]} 42. Kg4 {[%emt 0:00:
01]} Rf8 {[%emt 0:00:05]} 43. f4 {[%emt 0:00:02]} Bf1 {[%emt 0:00:05]} 44.
fxg5+ {[%emt 0:00:02]} Kg6 {[%emt 0:00:00]} 45. Rf4 {[%emt 0:00:01]} Be2+ {
[%emt 0:00:01]} 46. Kh4 {[%emt 0:00:01]} Rh8# 0-1

[Event "FIDE Women World Blitz 2021"]
[Site "Warsaw"]
[Date "2021.12.29"]
[Round "6.37"]
[White "Sandu, Mihaela"]
[Black "Loskutova, Viktoriya"]
[Result "0-1"]
[ECO "B92"]
[WhiteElo "2244"]
[BlackElo "2195"]
[Annotator "NA"]
[PlyCount "67"]
[EventDate "2021.12.29"]
[EventType "swiss"]
[EventCountry "POL"]
[Tiebreak "Cut1 Buchholz"]
[SourceTitle "playchess.com"]
[Source "ChessBase"]
[SourceQuality "1"]
[TimeControl "180+2"]

1. e4 {[%emt 0:00:01]} c5 {[%emt 0:00:01]} 2. Nf3 {[%emt 0:00:00]} d6 {[%emt 0:
00:00]} 3. d4 {[%emt 0:00:01]} cxd4 {[%emt 0:00:01]} 4. Nxd4 {[%emt 0:00:01]}
Nf6 {[%emt 0:00:01]} 5. Nc3 {[%emt 0:00:01]} a6 {[%emt 0:00:00]} 6. Be2 {
[%emt 0:00:01]} e5 {[%emt 0:00:01]} 7. Nb3 {[%emt 0:00:02]} Be7 {[%emt 0:00:03]
} 8. O-O {[%emt 0:00:03]} O-O {[%emt 0:00:01]} 9. Be3 {[%emt 0:00:02]} Be6 {
[%emt 0:00:01]} 10. Qd2 {[%emt 0:00:02]} Nbd7 {[%emt 0:00:02]} 11. a4 {[%emt 0:
00:01]} Nb6 {[%emt 0:00:06]} 12. a5 {[%emt 0:00:01]} Nc4 {[%emt 0:00:02]} 13.
Bxc4 {[%emt 0:00:01]} Bxc4 {[%emt 0:00:01]} 14. Rfd1 {[%emt 0:00:03]} Qc7 {
[%emt 0:00:13]} 15. f3 {[%emt 0:00:12]} Rac8 {[%emt 0:00:09]} 16. Nc1 {[%emt 0:
00:16]} Qc6 {[%emt 0:00:22]} 17. Nd3 {[%emt 0:00:38]} Bxd3 {[%emt 0:00:34]} 18.
Qxd3 {[%emt 0:00:02]} h6 {[%emt 0:00:02]} 19. Ra4 {[%emt 0:00:33]} Rfd8 {
[%emt 0:00:08]} 20. Raa1 {[%emt 0:00:34]} Rd7 {[%emt 0:00:16]} 21. Rd2 {
[%emt 0:00:11]} Bd8 {[%emt 0:00:11]} 22. Kh1 {[%emt 0:00:13]} Bc7 {[%emt 0:00:
18]} 23. Nd5 {[%emt 0:00:08]} Nxd5 {[%emt 0:00:13]} 24. exd5 {[%emt 0:00:01]}
Qb5 {[%emt 0:00:05]} 25. c4 {[%emt 0:00:07]} Qb4 {[%emt 0:00:03]} 26. b3 {
[%emt 0:00:04]} Bxa5 {[%emt 0:00:49]} 27. Rc2 {[%emt 0:00:21]} b5 {[%emt 0:00:
05]} 28. Bd2 {[%emt 0:00:09]} Qc5 {[%emt 0:00:04]} 29. Bxa5 {[%emt 0:00:03]} b4
{[%emt 0:00:02]} 30. Ra4 {[%emt 0:00:03]} Rb8 {[%emt 0:00:01]} 31. Qd2 {
[%emt 0:00:05]} Rdb7 {[%emt 0:00:02]} 32. Rca2 {[%emt 0:00:02]} g6 {[%emt 0:00:
02]} 33. h3 {[%emt 0:00:02]} Kg7 {[%emt 0:00:01]} 34. Ra1 {[%emt 0:00:09]} 0-1

[Event "FIDE Women World Blitz 2021"]
[Site "Warsaw"]
[Date "2021.12.29"]
[Round "6.38"]
[White "Sliwicka, Alicja"]
[Black "Bartel, Marta"]
[Result "0-1"]
[ECO "B80"]
[WhiteElo "2303"]
[BlackElo "2192"]
[Annotator "NA"]
[PlyCount "80"]
[EventDate "2021.12.29"]
[EventType "swiss"]
[EventCountry "POL"]
[Tiebreak "Cut1 Buchholz"]
[SourceTitle "playchess.com"]
[Source "ChessBase"]
[SourceQuality "1"]
[TimeControl "180+2"]

1. e4 {[%emt 0:00:01]} c5 {[%emt 0:00:01]} 2. Nf3 {[%emt 0:00:01]} Nc6 {
[%emt 0:00:01]} 3. d4 {[%emt 0:00:01]} cxd4 {[%emt 0:00:01]} 4. Nxd4 {[%emt 0:
00:02]} Nf6 {[%emt 0:00:01]} 5. Nc3 {[%emt 0:00:01]} d6 {[%emt 0:00:01]} 6. Nb3
{[%emt 0:00:02]} e6 {[%emt 0:00:11]} 7. Bd3 {[%emt 0:00:02]} a6 {[%emt 0:00:04]
} 8. O-O {[%emt 0:00:03]} b5 {[%emt 0:00:08]} 9. f4 {[%emt 0:00:03]} Bb7 {
[%emt 0:00:06]} 10. Qf3 {[%emt 0:00:02]} Qc7 {[%emt 0:00:12]} 11. Bd2 {[%emt 0:
00:02]} b4 {[%emt 0:00:21]} 12. Na4 {[%emt 0:00:10]} e5 {[%emt 0:00:09]} 13. c3
{[%emt 0:00:36]} bxc3 {[%emt 0:00:17]} 14. Bxc3 {[%emt 0:00:02]} Be7 {[%emt 0:
00:15]} 15. Rac1 {[%emt 0:00:01]} Qd8 {[%emt 0:00:16]} 16. Kh1 {[%emt 0:00:30]}
O-O {[%emt 0:00:02]} 17. Rfd1 {[%emt 0:00:34]} exf4 {[%emt 0:00:02]} 18. Qxf4 {
[%emt 0:00:03]} Ne5 {[%emt 0:00:12]} 19. Bb1 {[%emt 0:00:28]} Nfg4 {[%emt 0:00:
22]} 20. Bd2 {[%emt 0:00:25]} h6 {[%emt 0:00:08]} 21. h3 {[%emt 0:00:03]} Bg5 {
[%emt 0:00:02]} 22. Qf1 {[%emt 0:00:06]} Ne3 {[%emt 0:00:14]} 23. Bxe3 {
[%emt 0:00:01]} Bxe3 {[%emt 0:00:02]} 24. Rc3 {[%emt 0:00:01]} Ba7 {[%emt 0:00:
06]} 25. Nac5 {[%emt 0:00:02]} Bc6 {[%emt 0:00:16]} 26. Nd3 {[%emt 0:00:06]}
Bb5 {[%emt 0:00:04]} 27. a4 {[%emt 0:00:04]} Bxd3 {[%emt 0:00:03]} 28. Bxd3 {
[%emt 0:00:02]} Qh4 {[%emt 0:00:01]} 29. Nd2 {[%emt 0:00:08]} Ng4 {[%emt 0:00:
03]} 30. Nf3 {[%emt 0:00:09]} Nf2+ {[%emt 0:00:10]} 31. Kh2 {[%emt 0:00:06]}
Qf4+ {[%emt 0:00:01]} 32. g3 {[%emt 0:00:03]} Qxf3 {[%emt 0:00:01]} 33. Rd2 {
[%emt 0:00:01]} Qf6 {[%emt 0:00:07]} 34. Be2 {[%emt 0:00:04]} Qe5 {[%emt 0:00:
03]} 35. Rf3 {[%emt 0:00:01]} Nxe4 {[%emt 0:00:02]} 36. Rdd3 {[%emt 0:00:02]}
Rac8 {[%emt 0:00:02]} 37. Rf5 {[%emt 0:00:01]} Qe6 {[%emt 0:00:02]} 38. Qf3 {
[%emt 0:00:01]} Rc2 {[%emt 0:00:02]} 39. Kh1 {[%emt 0:00:03]} Ng5 {[%emt 0:00:
01]} 40. Qd5 {[%emt 0:00:04]} Qxe2 {[%emt 0:00:03]} 0-1

[Event "FIDE Women World Blitz 2021"]
[Site "Warsaw"]
[Date "2021.12.29"]
[Round "6.39"]
[White "Kovanova, Baira"]
[Black "Wikar, Martyna"]
[Result "1/2-1/2"]
[ECO "B31"]
[WhiteElo "2331"]
[BlackElo "1899"]
[Annotator "NA"]
[PlyCount "32"]
[EventDate "2021.12.29"]
[EventType "swiss"]
[EventCountry "POL"]
[Tiebreak "Cut1 Buchholz"]
[SourceTitle "playchess.com"]
[Source "ChessBase"]
[SourceQuality "1"]
[TimeControl "180+2"]

1. e4 {[%emt 0:00:01]} c5 {[%emt 0:00:01]} 2. Nf3 {[%emt 0:00:01]} Nc6 {
[%emt 0:00:01]} 3. Bb5 {[%emt 0:00:01]} g6 {[%emt 0:00:02]} 4. Bxc6 {[%emt 0:
00:03]} dxc6 {[%emt 0:00:01]} 5. h3 {[%emt 0:00:02]} Bg7 {[%emt 0:00:02]} 6. d3
{[%emt 0:00:01]} e5 {[%emt 0:00:03]} 7. Be3 {[%emt 0:00:05]} b6 {[%emt 0:00:05]
} 8. a4 {[%emt 0:00:01]} Ne7 {[%emt 0:00:04]} 9. Nbd2 {[%emt 0:00:05]} O-O {
[%emt 0:00:03]} 10. Nc4 {[%emt 0:00:08]} Qc7 {[%emt 0:00:03]} 11. O-O {[%emt 0:
00:07]} Be6 {[%emt 0:00:07]} 12. Qc1 {[%emt 0:00:25]} f5 {[%emt 0:00:10]} 13.
Bh6 {[%emt 0:00:19]} fxe4 {[%emt 0:00:28]} 14. Bxg7 {[%emt 0:00:10]} exf3 {
[%emt 0:00:09]} 15. Bxe5 {[%emt 0:00:42]} Qd7 {[%emt 0:00:09]} 16. Qg5 {
[%emt 0:00:11]} Rf5 {[%emt 0:00:34]} 1/2-1/2

[Event "FIDE Women World Blitz 2021"]
[Site "Warsaw"]
[Date "2021.12.29"]
[Round "7.1"]
[White "Shuvalova, Polina"]
[Black "Goryachkina, Aleksandra"]
[Result "1-0"]
[ECO "B12"]
[WhiteElo "2515"]
[BlackElo "2604"]
[Annotator "ChessBase"]
[PlyCount "65"]
[EventDate "2021.12.29"]
[EventType "swiss"]
[EventCountry "POL"]
[Tiebreak "Cut1 Buchholz"]
[SourceTitle "playchess.com"]
[Source "ChessBase"]
[SourceQuality "1"]
[TimeControl "180+2"]

1. e4 {[%emt 0:00:01]} c6 {[%emt 0:00:01]} 2. d4 {[%emt 0:00:02]} d5 {[%emt 0:
00:01]} 3. e5 {[%emt 0:00:07]} c5 {[%emt 0:00:02]} 4. dxc5 {[%emt 0:00:02]} e6
{[%emt 0:00:01]} 5. a3 {[%emt 0:00:04]} Bxc5 {[%emt 0:00:03]} 6. Bd3 {[%emt 0:
00:02]} Ne7 {[%emt 0:00:06]} 7. Nf3 {[%emt 0:00:02]} Nd7 {[%emt 0:00:08]} 8.
O-O {[%emt 0:00:03]} Ng6 {[%emt 0:00:02]} 9. Qe2 {[%emt 0:00:05]} O-O {[%emt 0:
00:09]} 10. b4 {[%emt 0:00:06]} Bb6 {[%emt 0:00:01]} 11. Nc3 {[%emt 0:00:04]}
a5 {[%emt 0:00:05]} 12. Bd2 {[%emt 0:00:07]} Bc7 {[%emt 0:00:09]} 13. Bxg6 {
[%emt 0:00:29]} fxg6 {[%emt 0:00:03]} 14. Nb5 {[%emt 0:00:02]} a4 {[%emt 0:00:
41]} 15. Bg5 {[%emt 0:00:05]} Nf6 {[%emt 0:00:07]} 16. Nxc7 {[%emt 0:00:09]}
Qxc7 {[%emt 0:00:01]} 17. exf6 {[%emt 0:00:02]} gxf6 {[%emt 0:00:01]} 18. Be3 {
[%emt 0:00:10]} e5 {[%emt 0:00:03]} 19. Bc5 {[%emt 0:00:15]} Re8 {[%emt 0:00:
06]} 20. Rad1 {[%emt 0:00:18]} Be6 {[%emt 0:00:04]} 21. Qb5 {[%emt 0:00:06]}
Rec8 {[%emt 0:00:12]} 22. Rfe1 {[%emt 0:00:05]} Ra6 {[%emt 0:00:08]} 23. h3 {
[%emt 0:00:07]} Kf7 {[%emt 0:00:08]} 24. Rd2 {[%emt 0:00:11]} h5 {[%emt 0:00:
05]} 25. Red1 {[%emt 0:00:03]} g5 {[%emt 0:00:04]} 26. c3 {[%emt 0:00:12]} g4 {
[%emt 0:00:09]} 27. hxg4 {[%emt 0:00:01]} hxg4 {[%emt 0:00:01]} 28. Nh4 {
[%emt 0:00:04]} Rh8 {[%emt 0:00:05]} 29. g3 {[%emt 0:00:01]} Raa8 {[%emt 0:00:
33]} 30. Rxd5 {[%emt 0:00:13]} Bxd5 {[%emt 0:00:03]} 31. Rxd5 {[%emt 0:00:00]}
Qc6 {[%emt 0:00:29]} 32. Qd3 {[%emt 0:00:05]} Qe6 {[%emt 0:00:10]} 33. Qg6# {
[%emt 0:00:05]} 1-0

[Event "FIDE Women World Blitz 2021"]
[Site "Warsaw"]
[Date "2021.12.29"]
[Round "7.1"]
[White "Berend, Elvira"]
[Black "Goraj, Barbara"]
[Result "1-0"]
[ECO "B22"]
[WhiteElo "2328"]
[BlackElo "1902"]
[Annotator "NA"]
[PlyCount "103"]
[EventDate "2021.12.29"]
[EventType "swiss"]
[EventCountry "POL"]
[Tiebreak "Cut1 Buchholz"]
[SourceTitle "playchess.com"]
[Source "ChessBase"]
[SourceQuality "1"]
[TimeControl "180+2"]

1. e4 {[%emt 0:00:02]} c5 {[%emt 0:00:01]} 2. Nf3 {[%emt 0:00:01]} Nc6 {
[%emt 0:00:01]} 3. c3 {[%emt 0:00:04]} d5 {[%emt 0:00:12]} 4. exd5 {[%emt 0:00:
01]} Qxd5 {[%emt 0:00:02]} 5. d4 {[%emt 0:00:01]} Nf6 {[%emt 0:00:15]} 6. Be2 {
[%emt 0:00:02]} e6 {[%emt 0:00:09]} 7. O-O {[%emt 0:00:06]} Be7 {[%emt 0:00:10]
} 8. Be3 {[%emt 0:00:08]} cxd4 {[%emt 0:00:03]} 9. cxd4 {[%emt 0:00:01]} O-O {
[%emt 0:00:08]} 10. Nc3 {[%emt 0:00:02]} Qa5 {[%emt 0:00:06]} 11. Qb3 {[%emt 0:
00:12]} Nb4 {[%emt 0:00:12]} 12. Ne5 {[%emt 0:00:20]} Nbd5 {[%emt 0:00:09]} 13.
Bd2 {[%emt 0:00:13]} Qb6 {[%emt 0:00:15]} 14. Qxb6 {[%emt 0:00:09]} Nxb6 {
[%emt 0:00:02]} 15. Bf3 {[%emt 0:00:05]} Rd8 {[%emt 0:00:04]} 16. Be3 {[%emt 0:
00:33]} Nbd5 {[%emt 0:00:06]} 17. Rac1 {[%emt 0:00:06]} Nxe3 {[%emt 0:00:37]}
18. fxe3 {[%emt 0:00:01]} Rb8 {[%emt 0:00:04]} 19. Rfd1 {[%emt 0:00:05]} Bd7 {
[%emt 0:00:25]} 20. a3 {[%emt 0:00:04]} Be8 {[%emt 0:00:13]} 21. Kf2 {[%emt 0:
00:03]} Nd7 {[%emt 0:00:03]} 22. Nxd7 {[%emt 0:00:26]} Bxd7 {[%emt 0:00:03]}
23. Ne4 {[%emt 0:00:01]} Bc6 {[%emt 0:00:03]} 24. Nc5 {[%emt 0:00:04]} Bxf3 {
[%emt 0:00:11]} 25. gxf3 {[%emt 0:00:04]} b6 {[%emt 0:00:04]} 26. Nd3 {[%emt 0:
00:07]} Rbc8 {[%emt 0:00:03]} 27. Ne5 {[%emt 0:00:03]} Bd6 {[%emt 0:00:08]} 28.
Nc6 {[%emt 0:00:04]} Re8 {[%emt 0:00:04]} 29. h3 {[%emt 0:00:04]} a6 {[%emt 0:
00:01]} 30. Ke2 {[%emt 0:00:03]} Rc7 {[%emt 0:00:01]} 31. e4 {[%emt 0:00:04]}
Rec8 {[%emt 0:00:03]} 32. d5 {[%emt 0:00:01]} exd5 {[%emt 0:00:02]} 33. exd5 {
[%emt 0:00:01]} Kf8 {[%emt 0:00:01]} 34. Kd3 {[%emt 0:00:02]} Re8 {[%emt 0:00:
02]} 35. Re1 {[%emt 0:00:04]} Rd7 {[%emt 0:00:02]} 36. Rxe8+ {[%emt 0:00:01]}
Kxe8 {[%emt 0:00:01]} 37. Rg1 {[%emt 0:00:02]} g6 {[%emt 0:00:02]} 38. Re1+ {
[%emt 0:00:05]} Kf8 {[%emt 0:00:01]} 39. Rc1 {[%emt 0:00:03]} Bf4 {[%emt 0:00:
03]} 40. Rc4 {[%emt 0:00:04]} Bd6 {[%emt 0:00:05]} 41. Nd4 {[%emt 0:00:03]} Kg7
{[%emt 0:00:03]} 42. b4 {[%emt 0:00:03]} Kf6 {[%emt 0:00:01]} 43. Nc6 {[%emt 0:
00:04]} h5 {[%emt 0:00:02]} 44. Re4 {[%emt 0:00:01]} Kg7 {[%emt 0:00:02]} 45.
Kc4 {[%emt 0:00:02]} b5+ {[%emt 0:00:02]} 46. Kd4 {[%emt 0:00:01]} Bc7 {
[%emt 0:00:02]} 47. Kc5 {[%emt 0:00:02]} Kf8 {[%emt 0:00:02]} 48. Re2 {[%emt 0:
00:05]} Rd6 {[%emt 0:00:03]} 49. Re7 {[%emt 0:00:07]} Rxc6+ {[%emt 0:00:03]}
50. Kxc6 {[%emt 0:00:01]} Bf4 {[%emt 0:00:02]} 51. d6 {[%emt 0:00:02]} g5 {
[%emt 0:00:01]} 52. Re4 {[%emt 0:00:03]} 1-0